[Event "GrandPrix_30.05"]
[Site "Chess.com"]
[Date "2020.05.30"]
[Round "8"]
[White "Gareth-Bale11"]
[Black "Pidzsy"]
[Result "0-1"]
[WhiteElo "2372"]
[BlackElo "2305"]
[TimeControl "600+2"]
[EndTime "11:58:04 PDT"]
[Termination "Pidzsy won by checkmate"]

1. d4 {[%clk 0:09:54.8]} 1... b6 {[%clk 0:09:56.7]} 2. c4 {[%clk 0:09:51.2]}
2... Bb7 {[%clk 0:09:57.5]} 3. Nc3 {[%clk 0:09:52]} 3... e6 {[%clk 0:09:58.4]}
4. a3 {[%clk 0:09:52.1]} 4... Nf6 {[%clk 0:09:57.3]} 5. Nf3 {[%clk 0:09:51.9]}
5... c5 {[%clk 0:09:57.7]} 6. d5 {[%clk 0:09:52.1]} 6... g6 {[%clk 0:09:59]} 7.
e4 {[%clk 0:09:52.5]} 7... Bg7 {[%clk 0:09:58.8]} 8. e5 {[%clk 0:09:48.9]} 8...
Ng4 {[%clk 0:09:46.4]} 9. Bf4 {[%clk 0:09:02.3]} 9... exd5 {[%clk 0:09:46.2]}
10. h3 {[%clk 0:08:44.9]} 10... Nxe5 {[%clk 0:09:04.1]} 11. Nxe5 {[%clk
0:08:19.7]} 11... O-O {[%clk 0:08:47.7]} 12. Be2 {[%clk 0:08:02.5]} 12... dxc4
{[%clk 0:08:47.5]} 13. O-O {[%clk 0:07:57.2]} 13... d5 {[%clk 0:08:44.4]} 14.
Bf3 {[%clk 0:07:56.1]} 14... Nc6 {[%clk 0:08:14.5]} 15. Bxd5 {[%clk 0:07:35.6]}
15... Nxe5 {[%clk 0:08:13.3]} 16. Bxb7 {[%clk 0:07:36.1]} 16... Nd3 {[%clk
0:07:50.7]} 17. Bxa8 {[%clk 0:07:15.8]} 17... Qxa8 {[%clk 0:07:52.6]} 18. Bh2
{[%clk 0:07:05.6]} 18... Nxb2 {[%clk 0:07:49.3]} 19. Qc2 {[%clk 0:06:32.5]}
19... Nd3 {[%clk 0:07:46.4]} 20. Rab1 {[%clk 0:06:31.5]} 20... Rd8 {[%clk
0:07:26.8]} 21. Nb5 {[%clk 0:06:29.1]} 21... a6 {[%clk 0:06:56]} 22. Nc7 {[%clk
0:06:10.4]} 22... Qe4 {[%clk 0:06:53.2]} 23. Rxb6 {[%clk 0:05:44.2]} 23... Bd4
{[%clk 0:06:36.1]} 24. Nxa6 {[%clk 0:05:16.9]} 24... Nxf2 {[%clk 0:06:21]} 25.
Qxe4 {[%clk 0:05:12]} 25... Nxe4+ {[%clk 0:06:21.5]} 26. Kh1 {[%clk 0:05:13.3]}
26... Nf2+ {[%clk 0:06:23.1]} 27. Rxf2 {[%clk 0:04:54.7]} 27... Bxf2 {[%clk
0:06:25]} 28. Rb8 {[%clk 0:04:55.9]} 28... Rxb8 {[%clk 0:06:18.9]} 29. Nxb8
{[%clk 0:04:57.8]} 29... c3 {[%clk 0:06:19.1]} 30. Bf4 {[%clk 0:04:53.6]} 30...
Be1 {[%clk 0:06:15.5]} 31. Nc6 {[%clk 0:03:49.8]} 31... Bd2 {[%clk 0:06:11.1]}
32. Be5 {[%clk 0:03:50.8]} 32... f6 {[%clk 0:05:56.7]} 33. Bxf6 {[%clk
0:03:31.6]} 33... Kf7 {[%clk 0:05:55.7]} 34. Bh8 {[%clk 0:03:32.6]} 34... Ke6
{[%clk 0:05:52.1]} 35. Na5 {[%clk 0:03:13.8]} 35... Kd5 {[%clk 0:05:49.8]} 36.
Nb3 {[%clk 0:02:58.1]} 36... Kc4 {[%clk 0:05:21.7]} 37. Na5+ {[%clk 0:01:20.8]}
37... Kd3 {[%clk 0:04:55.6]} 38. Nb7 {[%clk 0:01:03.6]} 38... Be3 {[%clk
0:04:23.5]} 39. a4 {[%clk 0:00:55.5]} 39... Bd4 {[%clk 0:04:18.4]} 40. a5 {[%clk
0:00:18.7]} 40... c2 {[%clk 0:04:11.8]} 41. Nxc5+ {[%clk 0:00:18.6]} 41... Bxc5
{[%clk 0:03:52.2]} 42. Bb2 {[%clk 0:00:18.5]} 42... Bd4 {[%clk 0:02:36.8]} 43.
Bc1 {[%clk 0:00:17.1]} 43... Be3 {[%clk 0:02:36.8]} 44. Ba3 {[%clk 0:00:17.7]}
44... Kc3 {[%clk 0:02:09.2]} 45. a6 {[%clk 0:00:15.3]} 45... Kb3 {[%clk
0:02:10.4]} 46. Bc1 {[%clk 0:00:10.3]} 46... Bxc1 {[%clk 0:02:10.7]} 47. a7
{[%clk 0:00:11.8]} 47... Bf4 {[%clk 0:02:08.6]} 48. a8=Q {[%clk 0:00:13.3]}
48... c1=R# {[%clk 0:02:08]} 0-1

[Event "GrandPrix_30.05"]
[Site "Chess.com"]
[Date "2020.05.30"]
[Round "8"]
[White "jacky72"]
[Black "Promacherr"]
[Result "1-0"]
[WhiteElo "2382"]
[BlackElo "2195"]
[TimeControl "600+2"]
[EndTime "11:58:04 PDT"]
[Termination "jacky72 won by resignation"]

1. d4 {[%clk 0:10:01.9]} 1... d5 {[%clk 0:09:57]} 2. c4 {[%clk 0:10:02]} 2... c6
{[%clk 0:09:58.3]} 3. cxd5 {[%clk 0:09:59.1]} 3... cxd5 {[%clk 0:10:00.2]} 4.
Bf4 {[%clk 0:10:00.4]} 4... Nc6 {[%clk 0:10:00]} 5. e3 {[%clk 0:10:01.2]} 5...
Nf6 {[%clk 0:09:58.6]} 6. Nc3 {[%clk 0:10:01.7]} 6... a6 {[%clk 0:09:59]} 7. Bd3
{[%clk 0:10:02.1]} 7... Bg4 {[%clk 0:09:59.1]} 8. Nf3 {[%clk 0:09:52.4]} 8... e6
{[%clk 0:09:59.6]} 9. O-O {[%clk 0:09:53.3]} 9... Bd6 {[%clk 0:09:59.4]} 10.
Bxd6 {[%clk 0:09:46.4]} 10... Qxd6 {[%clk 0:10:01.3]} 11. h3 {[%clk 0:09:47.9]}
11... Bxf3 {[%clk 0:10:02.1]} 12. Qxf3 {[%clk 0:09:47]} 12... O-O {[%clk
0:10:03]} 13. Rac1 {[%clk 0:09:46]} 13... Rac8 {[%clk 0:10:03.2]} 14. Qe2 {[%clk
0:09:42]} 14... e5 {[%clk 0:10:00.4]} 15. dxe5 {[%clk 0:09:41.9]} 15... Qxe5
{[%clk 0:10:02.3]} 16. Bb1 {[%clk 0:09:33.2]} 16... Rfe8 {[%clk 0:10:02.8]} 17.
Qd3 {[%clk 0:09:15.8]} 17... d4 {[%clk 0:09:54.9]} 18. exd4 {[%clk 0:09:14.2]}
18... Qxd4 {[%clk 0:09:56.8]} 19. Rfd1 {[%clk 0:09:10.9]} 19... Qh4 {[%clk
0:09:48.9]} 20. Qf5 {[%clk 0:08:52]} 20... g6 {[%clk 0:09:44.6]} 21. Qf3 {[%clk
0:08:48]} 21... Kg7 {[%clk 0:09:42.7]} 22. Re1 {[%clk 0:08:37.3]} 22... Rcd8
{[%clk 0:09:38.3]} 23. Rxe8 {[%clk 0:08:37.6]} 23... Rxe8 {[%clk 0:09:40.2]} 24.
Rd1 {[%clk 0:08:34.9]} 24... Qb4 {[%clk 0:09:39.4]} 25. Qxf6+ {[%clk 0:08:29]}
25... Kxf6 {[%clk 0:09:39.1]} 26. Nd5+ {[%clk 0:08:30.9]} 26... Kg7 {[%clk
0:09:32.4]} 27. Nxb4 {[%clk 0:08:31.7]} 27... Nxb4 {[%clk 0:09:34.3]} 28. Kf1
{[%clk 0:08:23.6]} 28... Re7 {[%clk 0:09:32.6]} 29. a3 {[%clk 0:08:13]} 29...
Nc6 {[%clk 0:09:32.6]} 30. Ba2 {[%clk 0:08:10]} 30... Kf6 {[%clk 0:09:33.3]} 31.
Rd6+ {[%clk 0:08:08.4]} 31... Ke5 {[%clk 0:09:34]} 32. Rd5+ {[%clk 0:08:07.7]}
32... Kf6 {[%clk 0:09:35.1]} 33. f4 {[%clk 0:07:59.9]} 33... h5 {[%clk
0:09:29.3]} 34. g3 {[%clk 0:07:59.3]} 34... h4 {[%clk 0:09:26.5]} 35. gxh4
{[%clk 0:07:53.2]} 35... Re4 {[%clk 0:09:21]} 36. Rd7 {[%clk 0:07:49.3]} 36...
Rxf4+ {[%clk 0:09:18.5]} 37. Kg2 {[%clk 0:07:45.7]} 37... Ne5 {[%clk 0:09:11.9]}
38. Rxb7 {[%clk 0:07:45.8]} 38... Rd4 {[%clk 0:09:10.4]} 39. Kg3 {[%clk
0:07:31]} 39... Rd3+ {[%clk 0:09:11]} 40. Kf4 {[%clk 0:07:31.5]} 40... Rd4+
{[%clk 0:09:10.7]} 41. Ke3 {[%clk 0:07:27.4]} 41... Rxh4 {[%clk 0:09:09.2]} 42.
Rb6+ {[%clk 0:07:28.5]} 42... Kg5 {[%clk 0:09:08.7]} 43. Rxa6 {[%clk 0:07:27.1]}
43... f5 {[%clk 0:09:05.6]} 44. b4 {[%clk 0:07:11.2]} 44... Rxh3+ {[%clk
0:09:04.7]} 45. Kd4 {[%clk 0:07:10.9]} 45... Nf3+ {[%clk 0:09:05.5]} 46. Kc5
{[%clk 0:07:06.3]} 46... f4 {[%clk 0:09:01.1]} 47. b5 {[%clk 0:07:01]} 47... Ne5
{[%clk 0:08:53.7]} 48. Kd4 {[%clk 0:06:45.1]} 48... Nf3+ {[%clk 0:08:50.3]} 49.
Kd5 {[%clk 0:06:42.2]} 49... Nd2 {[%clk 0:08:44.5]} 50. b6 {[%clk 0:06:38.8]}
50... Rd3+ {[%clk 0:08:04.4]} 51. Kc6 {[%clk 0:06:32.6]} 51... Rc3+ {[%clk
0:07:52.9]} 52. Kd7 {[%clk 0:06:22.3]} 52... Ne4 {[%clk 0:07:38]} 53. Ra5+
{[%clk 0:06:20.8]} 53... Rc5 {[%clk 0:07:21.4]} 54. b7 {[%clk 0:06:04.7]} 54...
Nf6+ {[%clk 0:06:58.4]} 55. Ke7 {[%clk 0:05:40.2]} 55... Rxa5 {[%clk 0:06:56.3]}
56. b8=Q {[%clk 0:05:40.6]} 56... Rf5 {[%clk 0:06:24.5]} 57. Be6 {[%clk
0:05:34.2]} 57... Ra5 {[%clk 0:06:13.9]} 58. Qb6 {[%clk 0:05:18.4]} 58... Nd5+
{[%clk 0:05:52.5]} 59. Bxd5 {[%clk 0:05:18.3]} 59... Rxd5 {[%clk 0:05:54.4]} 60.
Qf6+ {[%clk 0:05:14.5]} 60... Kg4 {[%clk 0:05:52.2]} 61. Qxg6+ {[%clk
0:05:12.2]} 61... Rg5 {[%clk 0:05:52.4]} 62. Qe6+ {[%clk 0:05:11.3]} 62... Kg3
{[%clk 0:05:52.5]} 63. Qe1+ {[%clk 0:05:08.8]} 63... Kg2 {[%clk 0:05:49.2]} 64.
Kf6 {[%clk 0:05:03.5]} 64... Rg3 {[%clk 0:05:37.7]} 65. Qe2+ {[%clk 0:05:03.4]}
65... Kh3 {[%clk 0:05:32.1]} 66. Kf5 {[%clk 0:04:45.4]} 66... Rxa3 {[%clk
0:04:48.7]} 67. Qf1+ {[%clk 0:04:38.2]} 67... Kh2 {[%clk 0:04:40.1]} 68. Qxf4+
{[%clk 0:04:37.6]} 68... Rg3 {[%clk 0:04:38]} 69. Qf2+ {[%clk 0:04:34.4]} 69...
Kh3 {[%clk 0:04:38.1]} 70. Qe2 {[%clk 0:04:24.2]} 70... Rg2 {[%clk 0:04:34]} 71.
Qh5+ {[%clk 0:04:10.3]} 71... Kg3 {[%clk 0:04:34.4]} 72. Qg4+ {[%clk 0:04:12.2]}
72... Kf2 {[%clk 0:04:34.3]} 73. Qf4+ {[%clk 0:04:12.4]} 73... Kg1 {[%clk
0:04:34.7]} 74. Qc1+ {[%clk 0:04:09.2]} 74... Kh2 {[%clk 0:04:33.3]} 75. Kf4
{[%clk 0:04:09.9]} 75... Rf2+ {[%clk 0:04:32.5]} 76. Ke3 {[%clk 0:04:10.5]}
76... Rg2 {[%clk 0:04:32.6]} 77. Qe1 {[%clk 0:04:01.5]} 77... Rg3+ {[%clk
0:04:31.9]} 78. Kf4 {[%clk 0:03:58.4]} 78... Rg2 {[%clk 0:04:20.5]} 79. Kf3
{[%clk 0:03:59.3]} 79... Ra2 {[%clk 0:04:16.4]} 80. Qh4+ {[%clk 0:03:55.8]}
80... Kg1 {[%clk 0:04:17.3]} 81. Qg5+ {[%clk 0:03:57.7]} 81... Kh2 {[%clk
0:04:14.7]} 82. Qh6+ {[%clk 0:03:57.1]} 82... Kg1 {[%clk 0:04:14.5]} 83. Qg7+
{[%clk 0:03:58.3]} 83... Kf1 {[%clk 0:04:10.4]} 84. Qc3 {[%clk 0:03:14.8]} 84...
Rf2+ {[%clk 0:04:10.4]} 85. Kg3 {[%clk 0:03:15.9]} 85... Rg2+ {[%clk 0:04:10.9]}
86. Kh3 {[%clk 0:03:17]} 86... Rf2 {[%clk 0:04:09.1]} 87. Qd3+ {[%clk
0:03:14.3]} 87... Ke1 {[%clk 0:04:07.2]} 88. Qe3+ {[%clk 0:03:10.4]} 88... Kf1
{[%clk 0:04:03.6]} 89. Qe4 {[%clk 0:03:09.6]} 89... Re2 {[%clk 0:04:00.8]} 90.
Qc4 {[%clk 0:03:00.8]} 90... Ke1 {[%clk 0:03:59]} 91. Kg3 {[%clk 0:03:01.7]}
91... Re3+ {[%clk 0:03:56.1]} 92. Kf4 {[%clk 0:03:01.3]} 92... Re2 {[%clk
0:03:57]} 93. Kf3 {[%clk 0:02:59.7]} 93... Rf2+ {[%clk 0:03:00.3]} 94. Ke3
{[%clk 0:02:58.7]} 94... Rd2 {[%clk 0:02:55.8]} 95. Qb4 {[%clk 0:02:54]} 1-0

[Event "GrandPrix_30.05"]
[Site "Chess.com"]
[Date "2020.05.30"]
[Round "8"]
[White "ZefirKa"]
[Black "GMStefanova"]
[Result "1/2-1/2"]
[WhiteElo "2145"]
[BlackElo "2295"]
[TimeControl "600+2"]
[EndTime "11:58:10 PDT"]
[Termination "Game drawn by repetition"]

1. e4 {[%clk 0:10:01.9]} 1... c6 {[%clk 0:09:58.7]} 2. d4 {[%clk 0:10:02.2]}
2... d5 {[%clk 0:09:59.2]} 3. exd5 {[%clk 0:10:04.1]} 3... cxd5 {[%clk
0:09:59.6]} 4. Bd3 {[%clk 0:10:05.4]} 4... Nc6 {[%clk 0:09:56.4]} 5. c3 {[%clk
0:10:06.2]} 5... Nf6 {[%clk 0:09:50.3]} 6. Bf4 {[%clk 0:10:06.7]} 6... Bg4
{[%clk 0:09:40.3]} 7. Qb3 {[%clk 0:10:06.9]} 7... Qd7 {[%clk 0:09:32.3]} 8. Nd2
{[%clk 0:10:07]} 8... Nh5 {[%clk 0:08:09.8]} 9. Be3 {[%clk 0:08:12.1]} 9... g6
{[%clk 0:07:58.5]} 10. h3 {[%clk 0:08:02.1]} 10... Bf5 {[%clk 0:07:53.5]} 11.
Be2 {[%clk 0:08:03.2]} 11... Nf6 {[%clk 0:07:43.9]} 12. Ngf3 {[%clk 0:08:03.8]}
12... Bg7 {[%clk 0:07:13.8]} 13. Ne5 {[%clk 0:07:47.2]} 13... Qc8 {[%clk
0:07:11.2]} 14. f4 {[%clk 0:07:17.4]} 14... O-O {[%clk 0:06:57.4]} 15. O-O
{[%clk 0:07:16.7]} 15... Rd8 {[%clk 0:06:38.9]} 16. Rae1 {[%clk 0:07:11]} 16...
Ne4 {[%clk 0:06:09]} 17. Bf3 {[%clk 0:06:51.3]} 17... Be6 {[%clk 0:05:59.6]} 18.
Qd1 {[%clk 0:05:49.7]} 18... Ng3 {[%clk 0:05:18.6]} 19. Rf2 {[%clk 0:05:49.3]}
19... f6 {[%clk 0:05:16.9]} 20. Nd3 {[%clk 0:05:24.5]} 20... Bf7 {[%clk
0:05:10.1]} 21. Kh2 {[%clk 0:04:20.2]} 21... Nf5 {[%clk 0:05:02.2]} 22. g4
{[%clk 0:03:51]} 22... Nxe3 {[%clk 0:05:02.2]} 23. Rxe3 {[%clk 0:03:52.9]} 23...
Qc7 {[%clk 0:04:57.6]} 24. Kg1 {[%clk 0:03:35.4]} 24... e5 {[%clk 0:04:46.4]}
25. fxe5 {[%clk 0:03:19.7]} 25... fxe5 {[%clk 0:04:47]} 26. dxe5 {[%clk
0:03:20.3]} 26... Nxe5 {[%clk 0:04:47.2]} 27. Nxe5 {[%clk 0:03:19.8]} 27... Bxe5
{[%clk 0:04:48]} 28. Rfe2 {[%clk 0:02:59.1]} 28... Bf6 {[%clk 0:04:06.2]} 29.
Nb3 {[%clk 0:02:57.2]} 29... Qf4 {[%clk 0:02:54]} 30. Nd4 {[%clk 0:02:41.9]}
30... Rac8 {[%clk 0:02:43]} 31. Bg2 {[%clk 0:02:11.7]} 31... Bxd4 {[%clk
0:01:46.9]} 32. Qxd4 {[%clk 0:02:11.9]} 32... Qxd4 {[%clk 0:01:47.3]} 33. cxd4
{[%clk 0:02:13.8]} 33... Rc4 {[%clk 0:01:48.2]} 34. Re7 {[%clk 0:01:47.5]} 34...
Rxd4 {[%clk 0:01:30.8]} 35. Rxb7 {[%clk 0:01:48.4]} 35... Rd1+ {[%clk 0:01:30]}
36. Kh2 {[%clk 0:01:49.6]} 36... a5 {[%clk 0:01:13.5]} 37. Ree7 {[%clk
0:01:48.9]} 37... Rf8 {[%clk 0:01:13]} 38. g5 {[%clk 0:01:22.7]} 38... Rd2
{[%clk 0:01:04.5]} 39. Kg3 {[%clk 0:01:22.1]} 39... Rd3+ {[%clk 0:01:02.9]} 40.
Kh2 {[%clk 0:01:17.1]} 40... Rd2 {[%clk 0:01:03.1]} 41. Kg3 {[%clk 0:01:04.5]}
41... Rd3+ {[%clk 0:01:03.7]} 42. Kh2 {[%clk 0:00:44.7]} 42... Rd2 {[%clk
0:01:00.8]} 1/2-1/2

[Event "GrandPrix_30.05"]
[Site "Chess.com"]
[Date "2020.05.30"]
[Round "8"]
[White "2346PL"]
[Black "IriBu"]
[Result "1/2-1/2"]
[WhiteElo "2102"]
[BlackElo "2190"]
[TimeControl "600+2"]
[EndTime "11:58:22 PDT"]
[Termination "Game drawn by repetition"]

1. d4 {[%clk 0:10:01.9]} 1... Nf6 {[%clk 0:09:57.7]} 2. Bg5 {[%clk 0:10:02.4]}
2... e6 {[%clk 0:09:54.5]} 3. Nf3 {[%clk 0:09:58.2]} 3... Be7 {[%clk 0:09:50.2]}
4. Nbd2 {[%clk 0:09:57.7]} 4... d6 {[%clk 0:09:48.6]} 5. e4 {[%clk 0:09:56.9]}
5... Nbd7 {[%clk 0:09:45.3]} 6. Be2 {[%clk 0:09:52.1]} 6... h6 {[%clk
0:09:43.9]} 7. Bh4 {[%clk 0:09:52]} 7... O-O {[%clk 0:09:43]} 8. O-O {[%clk
0:09:52.1]} 8... Re8 {[%clk 0:09:31.1]} 9. c3 {[%clk 0:09:48.9]} 9... b6 {[%clk
0:09:20.6]} 10. Re1 {[%clk 0:09:47.4]} 10... Bb7 {[%clk 0:09:20.9]} 11. Bd3
{[%clk 0:09:19.2]} 11... e5 {[%clk 0:09:20.4]} 12. d5 {[%clk 0:09:12.2]} 12...
Nh5 {[%clk 0:09:05.4]} 13. Bg3 {[%clk 0:08:56.1]} 13... Nf4 {[%clk 0:09:02.2]}
14. Bxf4 {[%clk 0:08:43.4]} 14... exf4 {[%clk 0:09:02.6]} 15. Bb5 {[%clk
0:08:44.2]} 15... a6 {[%clk 0:08:44.2]} 16. Bxd7 {[%clk 0:08:44.5]} 16... Qxd7
{[%clk 0:08:45.9]} 17. Nd4 {[%clk 0:08:42.7]} 17... Bf6 {[%clk 0:08:38.7]} 18.
Nf5 {[%clk 0:07:35.4]} 18... Kh7 {[%clk 0:08:25.7]} 19. Qh5 {[%clk 0:07:09.5]}
19... c6 {[%clk 0:07:51.3]} 20. dxc6 {[%clk 0:06:30.3]} 20... Bxc6 {[%clk
0:07:50.3]} 21. Rad1 {[%clk 0:06:29.6]} 21... Qe6 {[%clk 0:07:28]} 22. Nf3
{[%clk 0:05:22.2]} 22... Bxe4 {[%clk 0:07:04.5]} 23. Nxd6 {[%clk 0:04:38.9]}
23... Bxf3 {[%clk 0:06:20.7]} 24. gxf3 {[%clk 0:04:39.9]} 24... Qxe1+ {[%clk
0:05:58.1]} 25. Rxe1 {[%clk 0:04:41.8]} 25... Rxe1+ {[%clk 0:05:58.7]} 26. Kg2
{[%clk 0:04:43.3]} 26... Rd8 {[%clk 0:05:41.6]} 27. Ne4 {[%clk 0:04:29.5]} 27...
Be7 {[%clk 0:03:14.8]} 28. Qxf7 {[%clk 0:04:28.7]} 28... Bg5 {[%clk 0:02:54.4]}
29. Qf5+ {[%clk 0:03:34.9]} 29... Kh8 {[%clk 0:02:52.7]} 30. Qg6 {[%clk
0:03:13.4]} 30... Rdd1 {[%clk 0:02:32.9]} 31. Qxb6 {[%clk 0:03:06.8]} 31... Rg1+
{[%clk 0:02:30]} 32. Kh3 {[%clk 0:03:07.5]} 32... Rd5 {[%clk 0:02:15.2]} 33. Qe6
{[%clk 0:02:42.9]} 33... Ra5 {[%clk 0:01:59]} 34. b4 {[%clk 0:02:40.7]} 34...
Ra3 {[%clk 0:01:45.4]} 35. Qc8+ {[%clk 0:02:12.6]} 35... Kh7 {[%clk 0:01:46.1]}
36. Qf5+ {[%clk 0:02:13.7]} 36... Kg8 {[%clk 0:01:43.5]} 37. Qe5 {[%clk
0:00:47]} 37... Kh7 {[%clk 0:01:36.5]} 38. Nd6 {[%clk 0:00:34.7]} 38... Bf6
{[%clk 0:01:22.9]} 39. Qf5+ {[%clk 0:00:28]} 39... Kh8 {[%clk 0:01:18]} 40. Qc8+
{[%clk 0:00:23.2]} 40... Kh7 {[%clk 0:01:19]} 41. Qf5+ {[%clk 0:00:23.6]} 41...
Kh8 {[%clk 0:01:16.3]} 42. Qc8+ {[%clk 0:00:17.9]} 42... Kh7 {[%clk 0:01:17.3]}
43. Qf5+ {[%clk 0:00:16]} 1/2-1/2

[Event "GrandPrix_30.05"]
[Site "Chess.com"]
[Date "2020.05.30"]
[Round "8"]
[White "chessfreak35"]
[Black "kpio91"]
[Result "1-0"]
[WhiteElo "2506"]
[BlackElo "2560"]
[TimeControl "600+2"]
[EndTime "11:58:25 PDT"]
[Termination "chessfreak35 won by resignation"]

1. e4 {[%clk 0:10:01.9]} 1... c5 {[%clk 0:10:00.8]} 2. Nf3 {[%clk 0:10:03.2]}
2... d6 {[%clk 0:10:02.2]} 3. d4 {[%clk 0:10:04.6]} 3... cxd4 {[%clk 0:10:03.2]}
4. Nxd4 {[%clk 0:10:05.8]} 4... Nf6 {[%clk 0:10:04.4]} 5. Nc3 {[%clk 0:10:06.5]}
5... a6 {[%clk 0:10:05.6]} 6. h4 {[%clk 0:10:07.8]} 6... e5 {[%clk 0:09:55.4]}
7. Nb3 {[%clk 0:10:08.4]} 7... h5 {[%clk 0:09:46.1]} 8. Bg5 {[%clk 0:10:03.2]}
8... Be6 {[%clk 0:09:42.2]} 9. g3 {[%clk 0:09:34.5]} 9... Nbd7 {[%clk
0:09:37.8]} 10. Bh3 {[%clk 0:09:35.3]} 10... Bxh3 {[%clk 0:09:28.6]} 11. Rxh3
{[%clk 0:09:35.9]} 11... Be7 {[%clk 0:09:30.2]} 12. Qf3 {[%clk 0:09:19.9]} 12...
b5 {[%clk 0:09:19]} 13. a3 {[%clk 0:08:54.4]} 13... Rc8 {[%clk 0:08:39.4]} 14.
O-O-O {[%clk 0:08:54.4]} 14... Qc7 {[%clk 0:08:39.6]} 15. Qe2 {[%clk 0:08:13.3]}
15... Nb6 {[%clk 0:08:20.3]} 16. Bxf6 {[%clk 0:08:09.8]} 16... Bxf6 {[%clk
0:08:19.4]} 17. Nd5 {[%clk 0:08:11.2]} 17... Nxd5 {[%clk 0:08:20.2]} 18. Rxd5
{[%clk 0:08:12]} 18... Be7 {[%clk 0:08:06.8]} 19. Rh1 {[%clk 0:07:55.8]} 19...
g6 {[%clk 0:07:56.9]} 20. c3 {[%clk 0:07:44.4]} 20... Qc4 {[%clk 0:07:02]} 21.
Qc2 {[%clk 0:07:15.4]} 21... O-O {[%clk 0:06:26.8]} 22. Kb1 {[%clk 0:07:09.8]}
22... f5 {[%clk 0:06:20.1]} 23. Nd2 {[%clk 0:07:07.1]} 23... Qe2 {[%clk
0:06:16.8]} 24. exf5 {[%clk 0:06:36]} 24... gxf5 {[%clk 0:06:13.5]} 25. Qd1
{[%clk 0:05:53]} 25... Qxd1+ {[%clk 0:05:24.2]} 26. Rxd1 {[%clk 0:05:53.4]}
26... Kf7 {[%clk 0:05:14]} 27. f4 {[%clk 0:05:46.6]} 27... Ke6 {[%clk 0:05:05]}
28. Nf3 {[%clk 0:05:46.1]} 28... e4 {[%clk 0:04:12.3]} 29. Ng5+ {[%clk
0:05:28.9]} 29... Kd7 {[%clk 0:04:13.3]} 30. Kc2 {[%clk 0:05:22.3]} 30... Rc6
{[%clk 0:03:49.1]} 31. Kb3 {[%clk 0:05:10.8]} 31... Kc8 {[%clk 0:03:27]} 32. Ne6
{[%clk 0:04:52.1]} 32... Rf7 {[%clk 0:03:27.4]} 33. Kb4 {[%clk 0:04:26.1]} 33...
Rc4+ {[%clk 0:03:20.1]} 34. Kb3 {[%clk 0:04:25.2]} 34... Rc6 {[%clk 0:02:56.4]}
35. a4 {[%clk 0:04:17.7]} 35... bxa4+ {[%clk 0:02:04.2]} 36. Kxa4 {[%clk
0:04:18.6]} 36... Rb6 {[%clk 0:01:57.8]} 37. b4 {[%clk 0:04:13.4]} 37... Rc6
{[%clk 0:01:53.7]} 38. Kb3 {[%clk 0:04:13.1]} 38... Bf6 {[%clk 0:01:53.9]} 39.
c4 {[%clk 0:04:03.5]} 39... Kd7 {[%clk 0:01:53.5]} 40. Ng5 {[%clk 0:03:43.9]}
40... Bxg5 {[%clk 0:01:54.1]} 41. hxg5 {[%clk 0:03:45]} 41... Ke6 {[%clk
0:01:53.7]} 42. c5 {[%clk 0:03:29.7]} 42... Rd7 {[%clk 0:01:04.3]} 43. Kc4
{[%clk 0:03:20.1]} 43... Rd8 {[%clk 0:00:36.7]} 44. g6 {[%clk 0:03:01.5]} 44...
e3 {[%clk 0:00:32.1]} 45. Re1 {[%clk 0:02:44.9]} 45... Kf6 {[%clk 0:00:24.1]}
46. Rxe3 {[%clk 0:02:45.1]} 46... Rdc8 {[%clk 0:00:25.4]} 47. Kd4 {[%clk
0:02:20.8]} 47... dxc5+ {[%clk 0:00:22.5]} 48. bxc5 {[%clk 0:02:21.4]} 48...
Kxg6 {[%clk 0:00:20.5]} 49. Rd6+ {[%clk 0:02:20]} 49... Rxd6+ {[%clk 0:00:15.4]}
50. cxd6 {[%clk 0:02:20.7]} 50... a5 {[%clk 0:00:08.1]} 51. Kd5 {[%clk
0:02:16.4]} 51... Rc1 {[%clk 0:00:04.8]} 52. Ke6 {[%clk 0:02:11.9]} 1-0

[Event "GrandPrix_30.05"]
[Site "Chess.com"]
[Date "2020.05.30"]
[Round "8"]
[White "Kopytkin"]
[Black "dosto07"]
[Result "0-1"]
[WhiteElo "2023"]
[BlackElo "1843"]
[TimeControl "600+2"]
[EndTime "11:58:34 PDT"]
[Termination "dosto07 won by resignation"]

1. e4 {[%clk 0:10:01.9]} 1... e5 {[%clk 0:09:59.1]} 2. Nf3 {[%clk 0:10:02.2]}
2... Nc6 {[%clk 0:09:58.6]} 3. Bc4 {[%clk 0:10:01.9]} 3... Bc5 {[%clk
0:09:57.4]} 4. d3 {[%clk 0:10:03]} 4... d6 {[%clk 0:09:55.7]} 5. Nc3 {[%clk
0:10:01.8]} 5... Nf6 {[%clk 0:09:54]} 6. Be3 {[%clk 0:10:01.4]} 6... Bb6 {[%clk
0:09:52.5]} 7. h3 {[%clk 0:09:54.8]} 7... O-O {[%clk 0:09:48.3]} 8. Bg5 {[%clk
0:09:55.8]} 8... h6 {[%clk 0:09:43.1]} 9. Bh4 {[%clk 0:09:52.8]} 9... Ba5 {[%clk
0:08:44.8]} 10. Qd2 {[%clk 0:08:53.9]} 10... Be6 {[%clk 0:08:26.7]} 11. Bb3
{[%clk 0:08:36.3]} 11... Nd4 {[%clk 0:06:52.4]} 12. O-O-O {[%clk 0:08:09]} 12...
c6 {[%clk 0:06:00.2]} 13. Qe3 {[%clk 0:07:59.4]} 13... Bb6 {[%clk 0:05:12]} 14.
Qd2 {[%clk 0:07:54.7]} 14... a5 {[%clk 0:05:02]} 15. Nxd4 {[%clk 0:07:45.3]}
15... exd4 {[%clk 0:04:59.6]} 16. Ne2 {[%clk 0:07:23.3]} 16... a4 {[%clk
0:04:43]} 17. Bxe6 {[%clk 0:07:04.4]} 17... fxe6 {[%clk 0:04:43.7]} 18. c3
{[%clk 0:05:22.1]} 18... c5 {[%clk 0:04:15.3]} 19. cxd4 {[%clk 0:05:14.6]} 19...
cxd4 {[%clk 0:04:12.7]} 20. Kb1 {[%clk 0:05:15.5]} 20... Nxe4 {[%clk 0:03:59.7]}
21. Bxd8 {[%clk 0:02:18.2]} 21... Nxd2+ {[%clk 0:03:57.9]} 22. Rxd2 {[%clk
0:02:19.5]} 22... Raxd8 {[%clk 0:03:58.7]} 23. f3 {[%clk 0:02:19.4]} 23... Rc8
{[%clk 0:03:43.5]} 24. Rc2 {[%clk 0:02:19.7]} 24... d5 {[%clk 0:03:32.4]} 25.
Rhc1 {[%clk 0:02:16.3]} 25... Rxc2 {[%clk 0:03:26.6]} 26. Rxc2 {[%clk
0:02:17.4]} 26... e5 {[%clk 0:02:53.6]} 27. Ng3 {[%clk 0:02:13.9]} 27... Kf7
{[%clk 0:02:43.3]} 28. Re2 {[%clk 0:01:50.1]} 28... Re8 {[%clk 0:02:40.3]} 29.
Nf5 {[%clk 0:01:35.1]} 29... Re6 {[%clk 0:02:30.5]} 30. a3 {[%clk 0:01:25.6]}
30... h5 {[%clk 0:02:16.6]} 31. Ng3 {[%clk 0:01:02.6]} 31... Kg6 {[%clk
0:02:08.7]} 32. Kc2 {[%clk 0:00:52.6]} 32... Bd8 {[%clk 0:02:04.1]} 33. Kd1
{[%clk 0:00:52.1]} 33... Bg5 {[%clk 0:01:53.5]} 34. Nf1 {[%clk 0:00:39.8]} 34...
h4 {[%clk 0:01:49.6]} 35. Rc2 {[%clk 0:00:28.7]} 35... Rc6 {[%clk 0:01:46.7]}
36. Rxc6+ {[%clk 0:00:18.2]} 36... bxc6 {[%clk 0:01:46.8]} 37. Kc2 {[%clk
0:00:19.2]} 37... Kf5 {[%clk 0:01:36.4]} 38. g3 {[%clk 0:00:16.5]} 38... hxg3
{[%clk 0:01:33.8]} 39. Nxg3+ {[%clk 0:00:17.2]} 39... Kf4 {[%clk 0:01:30.7]} 40.
Nh5+ {[%clk 0:00:18]} 40... Kxf3 {[%clk 0:01:29.9]} 41. b3 {[%clk 0:00:18.4]}
41... e4 {[%clk 0:01:22.3]} 42. bxa4 {[%clk 0:00:18.6]} 42... e3 {[%clk
0:01:17]} 43. Kd1 {[%clk 0:00:13]} 43... e2+ {[%clk 0:01:13.2]} 44. Ke1 {[%clk
0:00:14.4]} 44... Bh4+ {[%clk 0:01:12.3]} 0-1